[Event "*** SCC Grand Prix: Titled Tuesday Blitz"]
[Site "Chess.com"]
[Date "2020.07.14"]
[Round "6"]
[White "ErikRonka"]
[Black "politeplayer"]
[Result "0-1"]
[WhiteElo "2358"]
[BlackElo "2221"]
[TimeControl "180+1"]
[EndTime "11:06:28 PDT"]
[Termination "politeplayer won by checkmate"]

1. d4 {[%clk 0:03:00.9]} 1... d5 {[%clk 0:02:59]} 2. c4 {[%clk 0:02:59.4]} 2...
e6 {[%clk 0:02:59.4]} 3. Nc3 {[%clk 0:02:59.2]} 3... c5 {[%clk 0:02:59.8]} 4.
cxd5 {[%clk 0:02:58.3]} 4... exd5 {[%clk 0:02:59.9]} 5. Nf3 {[%clk 0:02:58.2]}
5... Nc6 {[%clk 0:03:00.3]} 6. dxc5 {[%clk 0:02:57.5]} 6... Bxc5 {[%clk
0:02:55.8]} 7. Qxd5 {[%clk 0:02:50.2]} 7... Qb6 {[%clk 0:02:52]} 8. e3 {[%clk
0:02:32.5]} 8... Nf6 {[%clk 0:02:31.3]} 9. Qd1 {[%clk 0:02:29.4]} 9... Bf5
{[%clk 0:02:24.1]} 10. a3 {[%clk 0:02:24.7]} 10... Rd8 {[%clk 0:02:17.2]} 11.
Qa4 {[%clk 0:02:21.4]} 11... O-O {[%clk 0:02:06.1]} 12. b4 {[%clk 0:01:36.2]}
12... Nxb4 {[%clk 0:01:53.4]} 13. axb4 {[%clk 0:01:31.8]} 13... Bxb4 {[%clk
0:01:52.7]} 14. Bd2 {[%clk 0:01:19.8]} 14... Rxd2 {[%clk 0:01:49.7]} 15. Nxd2
{[%clk 0:01:10.9]} 15... Bxc3 {[%clk 0:01:47.2]} 16. Rd1 {[%clk 0:01:10.1]}
16... Ne4 {[%clk 0:00:55.3]} 17. Bd3 {[%clk 0:00:34]} 17... Nc5 {[%clk
0:00:37.5]} 18. Qc2 {[%clk 0:00:18.2]} 18... Nxd3+ {[%clk 0:00:34]} 19. Kf1
{[%clk 0:00:17.9]} 19... Rc8 {[%clk 0:00:27.7]} 20. Kg1 {[%clk 0:00:17.6]} 20...
Qg6 {[%clk 0:00:22.3]} 21. Nf3 {[%clk 0:00:14.5]} 21... Ne1 {[%clk 0:00:16.7]}
22. Qxc3 {[%clk 0:00:10.6]} 22... Qxg2# {[%clk 0:00:15.4]} 0-1

[Event "*** SCC Grand Prix: Titled Tuesday Blitz"]
[Site "Chess.com"]
[Date "2020.07.14"]
[Round "6"]
[White "wannabe2700"]
[Black "ChessWarrior7197"]
[Result "0-1"]
[WhiteElo "2662"]
[BlackElo "2855"]
[TimeControl "180+1"]
[EndTime "11:06:29 PDT"]
[Termination "ChessWarrior7197 won on time"]

1. d4 {[%clk 0:03:00.9]} 1... d5 {[%clk 0:02:59.4]} 2. c4 {[%clk 0:03:00.8]}
2... e6 {[%clk 0:03:00]} 3. Nc3 {[%clk 0:03:00.6]} 3... c5 {[%clk 0:03:00.5]} 4.
cxd5 {[%clk 0:03:00.7]} 4... exd5 {[%clk 0:03:01.4]} 5. Nf3 {[%clk 0:03:01.1]}
5... Nc6 {[%clk 0:03:01.3]} 6. dxc5 {[%clk 0:03:01.2]} 6... d4 {[%clk
0:03:01.8]} 7. Na4 {[%clk 0:02:57]} 7... Bxc5 {[%clk 0:03:01.8]} 8. Nxc5 {[%clk
0:02:56.6]} 8... Qa5+ {[%clk 0:03:02.3]} 9. Bd2 {[%clk 0:02:53.7]} 9... Qxc5
{[%clk 0:03:02.4]} 10. Rc1 {[%clk 0:02:54.2]} 10... Qb6 {[%clk 0:03:02.5]} 11.
e3 {[%clk 0:02:52.8]} 11... dxe3 {[%clk 0:02:59.5]} 12. Bxe3 {[%clk 0:02:53.7]}
12... Qb4+ {[%clk 0:02:56.7]} 13. Qd2 {[%clk 0:02:52.7]} 13... Qxd2+ {[%clk
0:02:55.6]} 14. Kxd2 {[%clk 0:02:49.2]} 14... Nge7 {[%clk 0:02:53.9]} 15. Bd3
{[%clk 0:02:32.9]} 15... O-O {[%clk 0:02:53.4]} 16. Ke2 {[%clk 0:02:29.3]} 16...
Bf5 {[%clk 0:02:53.1]} 17. Rhd1 {[%clk 0:02:26.5]} 17... Rfd8 {[%clk 0:02:51.9]}
18. a3 {[%clk 0:02:15.1]} 18... f6 {[%clk 0:02:39.5]} 19. Bc4+ {[%clk
0:02:09.7]} 19... Kf8 {[%clk 0:02:36.7]} 20. Nd4 {[%clk 0:02:07.3]} 20... Nxd4+
{[%clk 0:02:28.2]} 21. Bxd4 {[%clk 0:02:07.6]} 21... b6 {[%clk 0:02:28.5]} 22.
Ba6 {[%clk 0:02:04.3]} 22... Nd5 {[%clk 0:02:23.2]} 23. f3 {[%clk 0:01:52.5]}
23... Rd7 {[%clk 0:02:16.5]} 24. Kf2 {[%clk 0:01:46.3]} 24... Rad8 {[%clk
0:02:15.7]} 25. Bb5 {[%clk 0:01:36.9]} 25... Rd6 {[%clk 0:02:13.5]} 26. g4
{[%clk 0:01:32.8]} 26... Ne7 {[%clk 0:01:58.2]} 27. Ke3 {[%clk 0:01:14]} 27...
Bg6 {[%clk 0:01:57.8]} 28. Be2 {[%clk 0:00:32.7]} 28... Nd5+ {[%clk 0:01:52.7]}
29. Kf2 {[%clk 0:00:32.1]} 29... h5 {[%clk 0:01:19.7]} 30. b4 {[%clk 0:00:19.5]}
30... hxg4 {[%clk 0:01:14.7]} 31. fxg4 {[%clk 0:00:19.1]} 31... Nxb4 {[%clk
0:01:10.2]} 32. axb4 {[%clk 0:00:05.5]} 32... Rxd4 {[%clk 0:01:10.3]} 33. Rxd4
{[%clk 0:00:05]} 33... Rxd4 {[%clk 0:01:11.2]} 34. Rc7 {[%clk 0:00:02.7]} 34...
a5 {[%clk 0:00:58.2]} 0-1

[Event "*** SCC Grand Prix: Titled Tuesday Blitz"]
[Site "Chess.com"]
[Date "2020.07.14"]
[Round "6"]
[White "JuliaEfremova"]
[Black "SilviusTiberius"]
[Result "0-1"]
[WhiteElo "2308"]
[BlackElo "2486"]
[TimeControl "180+1"]
[EndTime "11:06:30 PDT"]
[Termination "SilviusTiberius won on time"]

1. e4 {[%clk 0:03:00.9]} 1... c5 {[%clk 0:02:59.7]} 2. f4 {[%clk 0:02:57.2]}
2... Nc6 {[%clk 0:02:57.7]} 3. Nf3 {[%clk 0:02:57.3]} 3... g6 {[%clk 0:02:57.2]}
4. Be2 {[%clk 0:02:56.4]} 4... Bg7 {[%clk 0:02:57.6]} 5. O-O {[%clk 0:02:56.3]}
5... d6 {[%clk 0:02:56.2]} 6. d3 {[%clk 0:02:56.5]} 6... Nf6 {[%clk 0:02:55.4]}
7. c3 {[%clk 0:02:56.7]} 7... O-O {[%clk 0:02:55.8]} 8. Na3 {[%clk 0:02:56.6]}
8... Rb8 {[%clk 0:02:55.7]} 9. Nc2 {[%clk 0:02:56.6]} 9... b5 {[%clk 0:02:55.7]}
10. Qe1 {[%clk 0:02:57]} 10... a5 {[%clk 0:02:54.8]} 11. f5 {[%clk 0:02:53.6]}
11... b4 {[%clk 0:02:52.5]} 12. Qh4 {[%clk 0:02:51.8]} 12... Ne5 {[%clk
0:02:46]} 13. Nxe5 {[%clk 0:02:40.1]} 13... dxe5 {[%clk 0:02:45.6]} 14. Bh6
{[%clk 0:02:32.8]} 14... Ba6 {[%clk 0:02:43.1]} 15. c4 {[%clk 0:02:26.1]} 15...
b3 {[%clk 0:02:27.6]} 16. Ne3 {[%clk 0:02:17.9]} 16... Qd4 {[%clk 0:02:19.9]}
17. Rf2 {[%clk 0:01:49.1]} 17... Qxb2 {[%clk 0:02:16.5]} 18. Raf1 {[%clk
0:01:40.4]} 18... bxa2 {[%clk 0:02:14.6]} 19. Bxg7 {[%clk 0:01:31.8]} 19... Kxg7
{[%clk 0:02:13.1]} 20. fxg6 {[%clk 0:01:29.2]} 20... fxg6 {[%clk 0:02:10.4]} 21.
Ng4 {[%clk 0:01:12.6]} 21... Ng8 {[%clk 0:01:19.7]} 22. Bf3 {[%clk 0:00:20.2]}
22... Qd4 {[%clk 0:01:10.8]} 23. Kh1 {[%clk 0:00:15.7]} 23... Rb1 {[%clk
0:01:10.8]} 24. h3 {[%clk 0:00:12.4]} 24... a1=Q {[%clk 0:01:05.5]} 25. Rxb1
{[%clk 0:00:11.4]} 25... Qxb1+ {[%clk 0:01:04.3]} 26. Kh2 {[%clk 0:00:12.3]}
26... Qbxd3 {[%clk 0:00:59.6]} 27. Nh6 {[%clk 0:00:05.6]} 27... Rf4 {[%clk
0:00:41.8]} 28. Qg5 {[%clk 0:00:02.2]} 28... Nxh6 {[%clk 0:00:40.8]} 29. Qxe7+
{[%clk 0:00:01.8]} 29... Nf7 {[%clk 0:00:40.5]} 0-1

[Event "*** SCC Grand Prix: Titled Tuesday Blitz"]
[Site "Chess.com"]
[Date "2020.07.14"]
[Round "6"]
[White "TioCridineno"]
[Black "Tekushka"]
[Result "0-1"]
[WhiteElo "2160"]
[BlackElo "2360"]
[TimeControl "180+1"]
[EndTime "11:06:31 PDT"]
[Termination "Tekushka won by checkmate"]

1. e4 {[%clk 0:03:00.9]} 1... c5 {[%clk 0:02:59.6]} 2. Nf3 {[%clk 0:03:00.4]}
2... Nc6 {[%clk 0:02:59.9]} 3. Bb5 {[%clk 0:03:00.1]} 3... g6 {[%clk 0:02:59.4]}
4. O-O {[%clk 0:03:00]} 4... Bg7 {[%clk 0:02:59.4]} 5. Bxc6 {[%clk 0:03:00.6]}
5... bxc6 {[%clk 0:02:58.9]} 6. Nc3 {[%clk 0:03:00.8]} 6... d6 {[%clk
0:02:49.9]} 7. h3 {[%clk 0:03:00.9]} 7... e5 {[%clk 0:02:43.7]} 8. d3 {[%clk
0:03:01]} 8... Ne7 {[%clk 0:02:37.9]} 9. Be3 {[%clk 0:03:01.5]} 9... h6 {[%clk
0:02:32.7]} 10. Qd2 {[%clk 0:03:01.7]} 10... f5 {[%clk 0:02:32.8]} 11. Qe2
{[%clk 0:02:41.7]} 11... f4 {[%clk 0:02:27.6]} 12. Bd2 {[%clk 0:02:40.3]} 12...
g5 {[%clk 0:02:27.8]} 13. Nh2 {[%clk 0:02:40.2]} 13... h5 {[%clk 0:02:25.8]} 14.
a3 {[%clk 0:02:29.2]} 14... Ng6 {[%clk 0:02:25.4]} 15. b4 {[%clk 0:02:28.4]}
15... cxb4 {[%clk 0:02:11.9]} 16. axb4 {[%clk 0:02:27.9]} 16... g4 {[%clk
0:02:12.2]} 17. Kh1 {[%clk 0:02:25.8]} 17... Qh4 {[%clk 0:02:01.1]} 18. b5
{[%clk 0:02:21.4]} 18... gxh3 {[%clk 0:00:46.7]} 19. gxh3 {[%clk 0:02:19.6]}
19... Qxh3 {[%clk 0:00:34.6]} 20. f3 {[%clk 0:02:15.3]} 20... Bd7 {[%clk
0:00:22.8]} 21. bxc6 {[%clk 0:02:13.5]} 21... Bxc6 {[%clk 0:00:23]} 22. Rg1
{[%clk 0:02:13.9]} 22... Kf7 {[%clk 0:00:22.4]} 23. Ra6 {[%clk 0:02:08.8]} 23...
Qd7 {[%clk 0:00:19.9]} 24. Nd5 {[%clk 0:02:02.7]} 24... Bxd5 {[%clk 0:00:18.5]}
25. exd5 {[%clk 0:02:02.7]} 25... Bf6 {[%clk 0:00:18.6]} 26. Qe4 {[%clk
0:02:01.7]} 26... Rag8 {[%clk 0:00:16.6]} 27. Rga1 {[%clk 0:01:54.3]} 27... Ne7
{[%clk 0:00:16]} 28. Rxa7 {[%clk 0:01:39.7]} 28... Qh3 {[%clk 0:00:15.8]} 29.
Qe2 {[%clk 0:01:40]} 29... Rg3 {[%clk 0:00:12.8]} 30. Rg1 {[%clk 0:01:37.3]}
30... Rhg8 {[%clk 0:00:12.2]} 31. Raa1 {[%clk 0:01:36.6]} 31... Nf5 {[%clk
0:00:06.6]} 32. Ra7+ {[%clk 0:01:15.6]} 32... Be7 {[%clk 0:00:05.4]} 33. Raa1
{[%clk 0:01:14.2]} 33... Rxg1+ {[%clk 0:00:05.2]} 34. Rxg1 {[%clk 0:01:13.6]}
34... Ng3+ {[%clk 0:00:06.1]} 35. Rxg3 {[%clk 0:01:13.9]} 35... fxg3 {[%clk
0:00:06.4]} 36. f4 {[%clk 0:00:59]} 36... g2+ {[%clk 0:00:06.2]} 37. Kg1 {[%clk
0:00:58.8]} 37... Qxh2+ {[%clk 0:00:06.2]} 38. Kxh2 {[%clk 0:00:57.8]} 38...
g1=Q+ {[%clk 0:00:06.5]} 39. Kh3 {[%clk 0:00:58.7]} 39... Qg3# {[%clk
0:00:06.3]} 0-1

[Event "*** SCC Grand Prix: Titled Tuesday Blitz"]
[Site "Chess.com"]
[Date "2020.07.14"]
[Round "6"]
[White "if_name_main_a"]
[Black "Duong57"]
[Result "0-1"]
[WhiteElo "2401"]
[BlackElo "2251"]
[TimeControl "180+1"]
[EndTime "11:06:31 PDT"]
[Termination "Duong57 won by resignation"]

1. c4 {[%clk 0:03:00.9]} 1... e5 {[%clk 0:02:59.2]} 2. Nc3 {[%clk 0:03:01.4]}
2... Nf6 {[%clk 0:02:58.5]} 3. Nf3 {[%clk 0:03:02]} 3... Nc6 {[%clk 0:02:54.8]}
4. e4 {[%clk 0:03:02.3]} 4... Bc5 {[%clk 0:02:46.7]} 5. Nxe5 {[%clk 0:03:02.6]}
5... Bxf2+ {[%clk 0:02:40.6]} 6. Kxf2 {[%clk 0:03:03.5]} 6... Nxe5 {[%clk
0:02:41.1]} 7. d4 {[%clk 0:03:04.2]} 7... Neg4+ {[%clk 0:02:41.1]} 8. Kg1 {[%clk
0:03:04.7]} 8... d6 {[%clk 0:02:40.4]} 9. h3 {[%clk 0:02:47.9]} 9... Nh6 {[%clk
0:02:39.7]} 10. Bg5 {[%clk 0:02:44.7]} 10... Nhg8 {[%clk 0:02:31.4]} 11. e5
{[%clk 0:02:40.9]} 11... h6 {[%clk 0:02:31.4]} 12. exf6 {[%clk 0:02:17.6]} 12...
hxg5 {[%clk 0:02:30.1]} 13. fxg7 {[%clk 0:02:18.5]} 13... Rh7 {[%clk 0:02:30.3]}
14. Qe2+ {[%clk 0:02:10.6]} 14... Qe7 {[%clk 0:02:27.7]} 15. Qd3 {[%clk
0:02:07.8]} 15... Rxg7 {[%clk 0:02:24.3]} 16. Nd5 {[%clk 0:02:08.1]} 16... Qd8
{[%clk 0:02:22.4]} 17. Re1+ {[%clk 0:02:07.7]} 17... Be6 {[%clk 0:02:21.4]} 18.
Ne3 {[%clk 0:02:04.1]} 18... Ne7 {[%clk 0:02:02.2]} 19. Be2 {[%clk 0:01:55]}
19... d5 {[%clk 0:01:58.6]} 20. Bf3 {[%clk 0:01:48.3]} 20... c6 {[%clk
0:01:57.9]} 21. cxd5 {[%clk 0:01:37.3]} 21... cxd5 {[%clk 0:01:56.9]} 22. Qb3
{[%clk 0:01:37.7]} 22... Qd7 {[%clk 0:01:56.4]} 23. Nxd5 {[%clk 0:01:27.8]}
23... Bxd5 {[%clk 0:01:55]} 24. Bxd5 {[%clk 0:01:28.7]} 24... Rd8 {[%clk
0:01:54.5]} 25. Qxb7 {[%clk 0:01:22.6]} 25... Qxb7 {[%clk 0:01:50.5]} 26. Bxb7
{[%clk 0:01:22.5]} 26... Rxd4 {[%clk 0:01:51.1]} 27. Re2 {[%clk 0:01:14.5]}
27... Kf8 {[%clk 0:01:50.6]} 28. Kh2 {[%clk 0:01:13.9]} 28... g4 {[%clk
0:01:50.1]} 29. Rhe1 {[%clk 0:01:13]} 29... f5 {[%clk 0:01:46.8]} 30. Bc8 {[%clk
0:00:46.1]} 30... g3+ {[%clk 0:01:33.4]} 31. Kh1 {[%clk 0:00:45.6]} 31... f4
{[%clk 0:01:33.7]} 32. Bg4 {[%clk 0:00:44.9]} 32... Rf7 {[%clk 0:01:21.6]} 33.
Bh5 {[%clk 0:00:44.8]} 33... Rh7 {[%clk 0:01:20]} 34. Bf3 {[%clk 0:00:45.2]}
34... Rf7 {[%clk 0:00:57.2]} 35. Kg1 {[%clk 0:00:45.4]} 35... Nf5 {[%clk
0:00:53.6]} 36. Re8+ {[%clk 0:00:44.6]} 36... Kg7 {[%clk 0:00:53.5]} 37. R8e4
{[%clk 0:00:40.4]} 37... Rxe4 {[%clk 0:00:51.7]} 38. Rxe4 {[%clk 0:00:41.3]}
38... Ne3 {[%clk 0:00:52]} 39. b4 {[%clk 0:00:41]} 39... Kg6 {[%clk 0:00:49.8]}
40. b5 {[%clk 0:00:37.7]} 40... Rc7 {[%clk 0:00:47.8]} 41. Rxe3 {[%clk
0:00:30.7]} 41... Rc1+ {[%clk 0:00:45.3]} 0-1

[Event "*** SCC Grand Prix: Titled Tuesday Blitz"]
[Site "Chess.com"]
[Date "2020.07.14"]
[Round "6"]
[White "OnePeculiarConundrum"]
[Black "talaicito"]
[Result "1/2-1/2"]
[WhiteElo "2353"]
[BlackElo "2189"]
[TimeControl "180+1"]
[EndTime "11:06:34 PDT"]
[Termination "Game drawn by repetition"]

1. e4 {[%clk 0:03:00.9]} 1... e5 {[%clk 0:03:00]} 2. Nf3 {[%clk 0:03:00.9]} 2...
Nc6 {[%clk 0:03:00.5]} 3. Bb5 {[%clk 0:03:00.7]} 3... a6 {[%clk 0:03:01]} 4. Ba4
{[%clk 0:03:00.7]} 4... Nf6 {[%clk 0:03:01.5]} 5. d4 {[%clk 0:03:00.6]} 5...
exd4 {[%clk 0:02:59.5]} 6. O-O {[%clk 0:03:00.3]} 6... b5 {[%clk 0:02:49.7]} 7.
Bb3 {[%clk 0:02:59.5]} 7... Be7 {[%clk 0:02:38.9]} 8. Re1 {[%clk 0:02:58.3]}
8... d6 {[%clk 0:02:34.8]} 9. Bd5 {[%clk 0:02:53.5]} 9... Bd7 {[%clk 0:02:33.1]}
10. Nxd4 {[%clk 0:02:50.7]} 10... Nxd5 {[%clk 0:02:22.7]} 11. Nxc6 {[%clk
0:02:46.3]} 11... Bxc6 {[%clk 0:02:12.8]} 12. exd5 {[%clk 0:02:46.1]} 12... Bd7
{[%clk 0:02:12.9]} 13. Bg5 {[%clk 0:02:45]} 13... f6 {[%clk 0:02:11.5]} 14. Bh4
{[%clk 0:02:40.7]} 14... O-O {[%clk 0:02:10]} 15. Nc3 {[%clk 0:02:39.7]} 15...
Re8 {[%clk 0:02:03.4]} 16. Re3 {[%clk 0:02:38.2]} 16... Bf8 {[%clk 0:02:02.3]}
17. Qd4 {[%clk 0:02:34.1]} 17... Rxe3 {[%clk 0:01:57.1]} 18. Qxe3 {[%clk
0:02:35]} 18... Qe8 {[%clk 0:01:56.7]} 19. Re1 {[%clk 0:02:27.4]} 19... Qxe3
{[%clk 0:01:55.6]} 20. Rxe3 {[%clk 0:02:28.3]} 20... Re8 {[%clk 0:01:55.3]} 21.
Rxe8 {[%clk 0:02:26.4]} 21... Bxe8 {[%clk 0:01:56.2]} 22. a3 {[%clk 0:02:26.1]}
22... Bg6 {[%clk 0:01:45.1]} 23. Kf1 {[%clk 0:02:10.6]} 23... Bxc2 {[%clk
0:01:44.7]} 24. Ke2 {[%clk 0:02:10.7]} 24... h5 {[%clk 0:01:44.7]} 25. f3 {[%clk
0:02:08.9]} 25... Bb3 {[%clk 0:01:35]} 26. Bf2 {[%clk 0:02:07.3]} 26... Kf7
{[%clk 0:01:31.6]} 27. Kd3 {[%clk 0:01:56.5]} 27... f5 {[%clk 0:01:25.4]} 28.
Bh4 {[%clk 0:01:51.8]} 28... Be7 {[%clk 0:01:22.6]} 29. Bxe7 {[%clk 0:01:49.7]}
29... Kxe7 {[%clk 0:01:23.5]} 30. f4 {[%clk 0:01:47.4]} 30... Kd7 {[%clk
0:01:22.6]} 31. Kd4 {[%clk 0:01:46.8]} 31... c6 {[%clk 0:01:19.1]} 32. dxc6+
{[%clk 0:01:46.4]} 32... Kxc6 {[%clk 0:01:19.6]} 33. Ne2 {[%clk 0:01:45]} 33...
Bc4 {[%clk 0:01:12.1]} 34. Ng3 {[%clk 0:01:43.2]} 34... g6 {[%clk 0:01:12.2]}
35. b4 {[%clk 0:01:32.4]} 35... Kb6 {[%clk 0:01:01.7]} 36. Nh1 {[%clk
0:01:30.6]} 36... a5 {[%clk 0:00:57.6]} 37. Nf2 {[%clk 0:01:29]} 37... axb4
{[%clk 0:00:52]} 38. axb4 {[%clk 0:01:28.7]} 38... Kc6 {[%clk 0:00:51.5]} 39. g3
{[%clk 0:01:28.2]} 39... Bf1 {[%clk 0:00:48]} 40. h4 {[%clk 0:01:14.9]} 40...
Kd7 {[%clk 0:00:34.2]} 41. Kd5 {[%clk 0:01:13.3]} 41... Bc4+ {[%clk 0:00:33.1]}
42. Kd4 {[%clk 0:01:13.2]} 42... Bf1 {[%clk 0:00:27.8]} 43. Nd1 {[%clk
0:01:12.4]} 43... Ke6 {[%clk 0:00:21.5]} 44. Ne3 {[%clk 0:01:10.4]} 44... Be2
{[%clk 0:00:21.6]} 45. Nd5 {[%clk 0:01:09.1]} 45... Kd7 {[%clk 0:00:16.2]} 46.
Nf6+ {[%clk 0:01:06.6]} 46... Ke6 {[%clk 0:00:16.3]} 47. Nd5 {[%clk 0:01:06.7]}
47... Kd7 {[%clk 0:00:16.4]} 48. Nc3 {[%clk 0:01:06.8]} 48... Bf1 {[%clk
0:00:15.4]} 49. Kd5 {[%clk 0:01:06.6]} 49... Bg2+ {[%clk 0:00:13.8]} 50. Kd4
{[%clk 0:01:06.9]} 50... Bf1 {[%clk 0:00:14.1]} 51. Nd1 {[%clk 0:01:06]} 51...
Ke6 {[%clk 0:00:13.7]} 52. Ne3 {[%clk 0:01:06.2]} 52... Be2 {[%clk 0:00:13.9]}
53. Nd5 {[%clk 0:01:04.7]} 1/2-1/2

[Event "*** SCC Grand Prix: Titled Tuesday Blitz"]
[Site "Chess.com"]
[Date "2020.07.14"]
[Round "6"]
[White "pedromartinez91"]
[Black "joksijoksi"]
[Result "1-0"]
[WhiteElo "2534"]
[BlackElo "2384"]
[TimeControl "180+1"]
[EndTime "11:06:36 PDT"]
[Termination "pedromartinez91 won on time"]

1. Nf3 {[%clk 0:03:00.9]} 1... d5 {[%clk 0:02:59.9]} 2. c4 {[%clk 0:03:00.9]}
2... c6 {[%clk 0:02:51.2]} 3. g3 {[%clk 0:03:00.4]} 3... Nf6 {[%clk 0:02:50.5]}
4. Bg2 {[%clk 0:03:00.5]} 4... dxc4 {[%clk 0:02:51.1]} 5. O-O {[%clk 0:02:58.4]}
5... Nbd7 {[%clk 0:02:51.2]} 6. b3 {[%clk 0:02:57.2]} 6... cxb3 {[%clk
0:02:46.3]} 7. axb3 {[%clk 0:02:55.1]} 7... e6 {[%clk 0:02:45.7]} 8. d4 {[%clk
0:02:54.7]} 8... Be7 {[%clk 0:02:44.4]} 9. Nc3 {[%clk 0:02:54.2]} 9... O-O
{[%clk 0:02:44.6]} 10. Ba3 {[%clk 0:02:51.3]} 10... Nd5 {[%clk 0:02:38.9]} 11.
Bxe7 {[%clk 0:02:48.7]} 11... Qxe7 {[%clk 0:02:30.6]} 12. Ne4 {[%clk 0:02:47]}
12... N7f6 {[%clk 0:02:24.2]} 13. Nc5 {[%clk 0:02:44.7]} 13... b6 {[%clk
0:02:23.1]} 14. Nd3 {[%clk 0:02:44.5]} 14... Bb7 {[%clk 0:02:20.6]} 15. Nfe5
{[%clk 0:02:44.3]} 15... Nd7 {[%clk 0:02:08.5]} 16. e4 {[%clk 0:02:27.5]} 16...
Nxe5 {[%clk 0:01:53.7]} 17. Nxe5 {[%clk 0:02:27.5]} 17... Nf6 {[%clk 0:01:50.2]}
18. Qc1 {[%clk 0:02:21.4]} 18... c5 {[%clk 0:01:45.4]} 19. dxc5 {[%clk
0:02:22.3]} 19... Qxc5 {[%clk 0:01:20.1]} 20. Qxc5 {[%clk 0:02:17.9]} 20... bxc5
{[%clk 0:01:21]} 21. f3 {[%clk 0:02:18.7]} 21... Rfc8 {[%clk 0:01:04.3]} 22.
Rfc1 {[%clk 0:02:14.9]} 22... Kf8 {[%clk 0:00:46.1]} 23. Ra5 {[%clk 0:02:14.1]}
23... Ke7 {[%clk 0:00:41]} 24. Raxc5 {[%clk 0:02:12]} 24... Rxc5 {[%clk
0:00:41.9]} 25. Rxc5 {[%clk 0:02:12.5]} 25... Kd6 {[%clk 0:00:30.5]} 26. b4
{[%clk 0:02:12.5]} 26... Rc8 {[%clk 0:00:20.6]} 27. Nxf7+ {[%clk 0:02:10.6]}
27... Ke7 {[%clk 0:00:19.4]} 28. Rxc8 {[%clk 0:02:10]} 28... Bxc8 {[%clk
0:00:20.3]} 29. Ne5 {[%clk 0:02:10.6]} 29... Kd6 {[%clk 0:00:18.6]} 30. Nc4+
{[%clk 0:02:10.4]} 30... Kc6 {[%clk 0:00:17.4]} 31. Bf1 {[%clk 0:02:10.6]} 31...
Nd7 {[%clk 0:00:10]} 32. Na5+ {[%clk 0:02:07.6]} 32... Kb6 {[%clk 0:00:08.4]}
33. Kf2 {[%clk 0:02:07.5]} 33... Ba6 {[%clk 0:00:05.4]} 34. Bh3 {[%clk
0:02:06.2]} 34... Nf8 {[%clk 0:00:03.4]} 35. Ke3 {[%clk 0:02:05.7]} 35... Kb5
{[%clk 0:00:03.6]} 36. Kd4 {[%clk 0:02:05.9]} 36... Kxb4 {[%clk 0:00:03.9]} 37.
Nc6+ {[%clk 0:02:06.2]} 37... Kb5 {[%clk 0:00:02.9]} 38. Nd8 {[%clk 0:02:04.2]}
38... Bc8 {[%clk 0:00:02]} 39. Ke5 {[%clk 0:02:02.7]} 39... a5 {[%clk
0:00:02.3]} 40. Kd6 {[%clk 0:02:01.8]} 40... a4 {[%clk 0:00:02.2]} 41. Kc7
{[%clk 0:02:01.8]} 41... a3 {[%clk 0:00:02.6]} 42. Nc6 {[%clk 0:01:53.1]} 42...
a2 {[%clk 0:00:02.4]} 43. Nd4+ {[%clk 0:01:53.7]} 43... Kc4 {[%clk 0:00:02.5]}
44. Nc2 {[%clk 0:01:54.3]} 44... Kc3 {[%clk 0:00:02.4]} 45. Na1 {[%clk
0:01:54.4]} 45... Kb2 {[%clk 0:00:02.8]} 46. Kxc8 {[%clk 0:01:52.1]} 46... Kxa1
{[%clk 0:00:02.9]} 47. Kd8 {[%clk 0:01:48.1]} 47... Kb2 {[%clk 0:00:03.2]} 48.
Ke7 {[%clk 0:01:49]} 48... a1=Q {[%clk 0:00:03.9]} 49. Kxf8 {[%clk 0:01:49.4]}
49... Qh1 {[%clk 0:00:03.4]} 50. Bxe6 {[%clk 0:01:48]} 50... Qxh2 {[%clk
0:00:04.3]} 51. g4 {[%clk 0:01:46]} 51... Qf4+ {[%clk 0:00:04.2]} 52. Bf5 {[%clk
0:01:45.9]} 52... Qxf3 {[%clk 0:00:04.3]} 53. Kxg7 {[%clk 0:01:45.9]} 1-0